fUST/lending_fUST_20250531
["ID","MTS","AMOUNT","RATE_DAILY","PERIOD"]
[363247271,1748645436341,-430.0,0.00017534,2]
[363247272,1748645436351,-962.3,0.00017534,2]
[363247273,1748645436360,-1198.76,0.00017534,2]
[363247274,1748645436369,-1303.21,0.00017534,2]
[363247275,1748645436380,-1709.17,0.00017534,2]
[363247276,1748645436396,-430.0,0.00017534,2]
[363247277,1748645436405,-500.0,0.00017606,2]
[363247278,1748645436415,-500.0,0.00017606,2]
[363247279,1748645436425,-1000.0,0.0001763,2]
[363247280,1748645436434,-1000.0,0.0001763,2]
[363247281,1748645436443,-1000.0,0.0001763,2]
[363247282,1748645436453,-564.54710437,0.0001763,2]
[363247283,1748645436462,-1000.0,0.0001763,2]
[363247284,1748645436471,-304.41326638,0.0001763,2]
[363247285,1748645436480,-741.32313444,0.0001763,2]
[363247286,1748645436489,-530.66870168,0.0001763,2]
[363247287,1748645436499,-500.0,0.0001763,2]
[363247288,1748645436508,-1000.0,0.00017688,2]
[363247289,1748645436518,-207.05840928,0.00017697,2]
[363247290,1748645436527,-5000.0,0.00017704,2]
[363247291,1748645436536,-2473.71754468,0.00017762,2]
[363247292,1748645436552,-4916.693819,0.00017762,2]
[363247293,1748645436561,-503.107899,0.00017808,2]
[363247294,1748645436571,-353.870505,0.00017808,2]
[363247295,1748645436581,-353.870505,0.00017808,2]
[363247296,1748645436590,-151.0,0.00017808,2]
[363247297,1748645436599,-151.0,0.00017808,2]
[363247298,1748645436608,-151.0,0.00017808,2]
[363247299,1748645436617,-151.0,0.00017808,2]
[363247300,1748645436627,-257.49018739,0.00017808,2]
[363247301,1748645436637,-430.0,0.00017808,2]
[363247302,1748645436646,-1089.93,0.00017808,2]
[363247303,1748645436655,-430.0,0.00017808,2]
[363247304,1748645436665,-1534.53,0.00017808,2]
[363247305,1748645436674,-1156.02,0.00017808,2]
[363247306,1748645436684,-1490.34,0.00017808,2]
[363247307,1748645436694,-451.89,0.00017808,2]
[363247308,1748645436703,-2135.86,0.00017808,2]
[363247309,1748645436713,-430.0,0.00017808,2]
[363247310,1748645436722,-430.0,0.00017808,2]
[363247311,1748645436732,-430.0,0.00017808,2]
[363247312,1748645436743,-430.0,0.00017808,2]
[363247313,1748645436752,-613.05,0.00017808,2]
[363247314,1748645436761,-430.0,0.00017808,2]
[363247315,1748645436771,-2185.34,0.00017808,2]
[363247316,1748645436988,-622.43,0.00017808,2]
[363247317,1748645436998,-430.0,0.00017808,2]
[363247318,1748645437007,-457.0,0.00017808,2]
[363247319,1748645437017,-2162.26,0.00017808,2]
[363247320,1748645437027,-510.64,0.00017808,2]
[363247321,1748645437036,-1735.21,0.00017808,2]
[363247322,1748645437047,-436.04,0.00017808,2]
[363247323,1748645437058,-567.44,0.00017808,2]
[363247324,1748645437068,-897.66,0.00017808,2]
[363247325,1748645437077,-637.91,0.00017808,2]
[363247326,1748645437086,-430.0,0.00017808,2]
[363247327,1748645437095,-430.0,0.00017808,2]
[363247328,1748645437104,-630.27,0.00017808,2]
[363247329,1748645437113,-373.78187104,0.00017808,2]
[363247332,1748645438682,-300.0,0.00016435,2]
[363247333,1748645438694,-200.0,0.00016435,2]
[363247334,1748645438703,-137.02880205,0.00016435,2]
[363247335,1748645438714,-162.97119795,0.00016435,2]
[363247336,1748645438724,-500.0,0.00016435,2]
[363247337,1748645438733,-500.0,0.00016435,2]
[363247338,1748645438742,-500.0,0.00016435,2]
[363247339,1748645438751,-388.95452241,0.00016435,2]
[363247340,1748645438760,-56.21812896,0.00017808,2]
[363247341,1748645438769,-962.3,0.00017808,2]
[363247342,1748645438779,-1198.76,0.00017808,2]
[363247343,1748645438788,-1303.21,0.00017808,2]
[363247344,1748645438797,-1709.17,0.00017808,2]
[363247345,1748645438806,-430.0,0.00017808,2]
[363247346,1748645438816,-250.0,0.00017827,2]
[363247347,1748645438825,-998.63634442,0.0001786,5]
[363247348,1748645438834,-2924.97103164,0.0001788,2]
[363247349,1748645438843,-420.0,0.00017959,2]
[363247350,1748645438852,-503.107899,0.00018,2]
[363247351,1748645438861,-353.870505,0.00018,2]
[363247352,1748645438871,-353.870505,0.00018,2]
[363247353,1748645438880,-151.0,0.00018,2]
[363247354,1748645438890,-151.0,0.00018,2]
[363247355,1748645438899,-162.56,0.00018,2]
[363247356,1748645438908,-7390.41136368,0.00018072,2]
[363247357,1748645438918,-939.921018,0.00018082,2]
[363247358,1748645438927,-939.921018,0.00018082,2]
[363247359,1748645438937,-151.360701,0.00018082,2]
[363247360,1748645438946,-430.0,0.00018082,2]
[363247361,1748645438956,-1089.93,0.00018082,2]
[363247362,1748645438965,-430.0,0.00018082,2]
[363247363,1748645438974,-1534.53,0.00018082,2]
[363247364,1748645438983,-1156.02,0.00018082,2]
[363247365,1748645438993,-1490.34,0.00018082,2]
[363247366,1748645439003,-451.89,0.00018082,2]
[363247367,1748645439012,-2135.86,0.00018082,2]
[363247368,1748645439022,-430.0,0.00018082,2]
[363247369,1748645439030,-430.0,0.00018082,2]
[363247370,1748645439040,-430.0,0.00018082,2]
[363247371,1748645439051,-430.0,0.00018082,2]
[363247372,1748645439061,-613.05,0.00018082,2]
[363247373,1748645439070,-430.0,0.00018082,2]
[363247374,1748645439080,-2185.34,0.00018082,2]
[363247375,1748645439090,-622.43,0.00018082,2]
[363247376,1748645439099,-430.0,0.00018082,2]
[363247377,1748645439108,-457.0,0.00018082,2]
[363247378,1748645439118,-2162.26,0.00018082,2]
[363247379,1748645439128,-510.64,0.00018082,2]
[363247380,1748645439141,-1735.21,0.00018082,2]
[363247381,1748645439150,-436.04,0.00018082,2]
[363247382,1748645439159,-567.44,0.00018082,2]
[363247383,1748645439168,-897.66,0.00018082,2]
[363247384,1748645439177,-637.91,0.00018082,2]
[363247385,1748645439186,-430.0,0.00018082,2]
[363247386,1748645439197,-630.27,0.00018082,2]
[363247387,1748645439206,-430.0,0.00018082,2]
[363247388,1748645439216,-962.3,0.00018082,2]
[363247389,1748645439225,-1198.76,0.00018082,2]
[363247390,1748645439235,-1303.21,0.00018082,2]
[363247391,1748645439244,-1709.17,0.00018082,2]
[363247392,1748645439252,-430.0,0.00018082,2]
[363247393,1748645439262,-587.0,0.00018084,2]
[363247394,1748645439271,-154.92057638,0.00018164,2]
[363247395,1748645439280,-500.0,0.00018178,2]
[363247396,1748645439290,-1500.0,0.00018178,2]
[363247397,1748645439299,-616.34,0.00018188,2]
[363247398,1748645439308,-172.918,0.00018188,2]
[363247399,1748645439317,-1500.0,0.00018236,2]
[363247400,1748645439326,-5000.0,0.00018252,2]
[363247401,1748645439336,-154.92057638,0.00018274,2]
[363247402,1748645439345,-2900.0,0.00018342,2]
[363247403,1748645439354,-503.107899,0.00018356,2]
[363247404,1748645439364,-503.107899,0.00018356,2]
[363247405,1748645439373,-353.870505,0.00018356,2]
[363247406,1748645439383,-353.870505,0.00018356,2]
[363247407,1748645439394,-151.0,0.00018356,2]
[363247408,1748645439403,-151.0,0.00018356,2]
[363247409,1748645439412,-430.0,0.00018356,2]
[363247410,1748645439421,-1089.93,0.00018356,2]
[363247411,1748645439431,-430.0,0.00018356,2]
[363247412,1748645439440,-1534.53,0.00018356,2]
[363247413,1748645439450,-1156.02,0.00018356,2]
[363247414,1748645439459,-1490.34,0.00018356,2]
[363247415,1748645439468,-451.89,0.00018356,2]
[363247416,1748645439478,-2135.86,0.00018356,2]
[363247417,1748645439487,-430.0,0.00018356,2]
[363247418,1748645439497,-430.0,0.00018356,2]
[363247419,1748645439506,-430.0,0.00018356,2]
[363247420,1748645439515,-430.0,0.00018356,2]
[363247421,1748645439525,-613.05,0.00018356,2]
[363247422,1748645439534,-430.0,0.00018356,2]
[363247423,1748645439543,-2185.34,0.00018356,2]
[363247424,1748645439553,-622.43,0.00018356,2]
[363247425,1748645439562,-430.0,0.00018356,2]
[363247426,1748645439572,-457.0,0.00018356,2]
[363247427,1748645439581,-2162.26,0.00018356,2]
[363247428,1748645439591,-510.64,0.00018356,2]
[363247429,1748645439600,-1735.21,0.00018356,2]
[363247430,1748645439609,-436.04,0.00018356,2]
[363247431,1748645439619,-567.44,0.00018356,2]
[363247432,1748645439628,-897.66,0.00018356,2]
[363247433,1748645439639,-637.91,0.00018356,2]
[363247434,1748645439648,-430.0,0.00018356,2]
[363247435,1748645439658,-630.27,0.00018356,2]
[363247436,1748645439667,-430.0,0.00018356,2]
[363247437,1748645439676,-962.3,0.00018356,2]
[363247438,1748645439687,-1198.76,0.00018356,2]
[363247439,1748645439699,-1303.21,0.00018356,2]
[363247440,1748645439708,-1709.17,0.00018356,2]
[363247441,1748645439717,-430.0,0.00018356,2]
[363247442,1748645439727,-150.13706857,0.00018358,2]
[363247443,1748645439736,-2924.97103164,0.00018376,2]
[363247444,1748645439745,-7390.41136368,0.00018383,2]
[363247445,1748645439755,-154.92057638,0.00018384,2]
[363247446,1748645439764,-151075.91018555,0.00018399,2]
[363247447,1748645439773,-151.0,0.000184,2]
[363247448,1748645439915,-2387.658062,0.00018424,2]
[363247449,1748645439924,-591.43959293,0.00018441,2]
[363247450,1748645439934,-154.92057638,0.00018466,2]
[363247451,1748645439943,-151.0,0.000185,2]
[363247452,1748645439953,-215.0738,0.00018525,2]
[363247453,1748645439962,-154.92057638,0.00018575,2]
[363247454,1748645439972,-151.0,0.000186,2]
[363247455,1748645439981,-151.0,0.000186,2]
[363247456,1748645439992,-662.7,0.00018629,2]
[363247457,1748645440002,-430.0,0.00018629,2]
[363247458,1748645440011,-836.16,0.00018629,2]
[363247459,1748645440021,-430.0,0.00018629,2]
[363247460,1748645440030,-2315.4,0.00018629,2]
[363247461,1748645440040,-476.78,0.00018629,2]
[363247462,1748645440051,-430.0,0.00018629,2]
[363247463,1748645440062,-1208.81,0.00018629,2]
[363247464,1748645440071,-151.0,0.0001863,2]
[363247465,1748645440080,-151.0,0.0001863,2]
[363247466,1748645440091,-209.619604,0.0001863,2]
[363247468,1748645440101,-209.619604,0.0001863,2]
[363247470,1748645440110,-151.0,0.0001863,2]
[363247472,1748645440119,-503.107899,0.0001863,2]
[363247473,1748645440130,-503.107899,0.0001863,2]
[363247474,1748645440140,-353.870505,0.0001863,2]
[363247475,1748645440149,-353.870505,0.0001863,2]
[363247477,1748645440158,-151.0,0.0001863,2]
[363247479,1748645440168,-208.33970809,0.0001863,2]
[363247481,1748645440177,-430.0,0.0001863,2]
[363247483,1748645440187,-1089.93,0.0001863,2]
[363247485,1748645440197,-430.0,0.0001863,2]
[363247487,1748645440206,-1534.53,0.0001863,2]
[363247490,1748645440216,-1156.02,0.0001863,2]
[363247492,1748645440226,-358.10446832,0.0001863,2]
[363247494,1748645440236,-1490.34,0.0001863,2]
[363247496,1748645440246,-451.89,0.0001863,2]
[363247498,1748645440255,-2135.86,0.0001863,2]
[363247500,1748645440264,-430.0,0.0001863,2]
[363247502,1748645440273,-430.0,0.0001863,2]
[363247504,1748645440283,-430.0,0.0001863,2]
[363247506,1748645440293,-430.0,0.0001863,2]
[363247508,1748645440302,-613.05,0.0001863,2]
[363247509,1748645440312,-430.0,0.0001863,2]
[363247511,1748645440322,-2185.34,0.0001863,2]
[363247513,1748645440331,-622.43,0.0001863,2]
[363247516,1748645440341,-430.0,0.0001863,2]
[363247518,1748645440351,-457.0,0.0001863,2]
[363247520,1748645440360,-2162.26,0.0001863,2]
[363247522,1748645440371,-510.64,0.0001863,2]
[363247524,1748645440380,-1735.21,0.0001863,2]
[363247526,1748645440391,-436.04,0.0001863,2]
[363247528,1748645440401,-567.44,0.0001863,2]
[363247530,1748645440412,-897.66,0.0001863,2]
[363247532,1748645440421,-637.91,0.0001863,2]
[363247534,1748645440431,-430.0,0.0001863,2]
[363247536,1748645440441,-630.27,0.0001863,2]
[363247538,1748645440450,-430.0,0.0001863,2]
[363247539,1748645440459,-962.3,0.0001863,2]
[363247541,1748645440469,-1198.76,0.0001863,2]
[363247543,1748645440478,-1303.21,0.0001863,2]
[363247545,1748645440487,-1709.17,0.0001863,2]
[363247546,1748645440496,-430.0,0.0001863,2]
[363247548,1748645440506,-154.92057638,0.00018685,2]
[363247550,1748645440516,-7390.41136368,0.00018693,2]
[363247552,1748645440525,-151.0,0.000187,2]
[363247554,1748645440536,-637.0,0.000187,2]
[363247556,1748645440546,-151.0,0.000187,2]
[363247558,1748645440555,-2021.75294258,0.00018726,2]
[363247561,1748645440565,-182.0,0.0001874,2]
[363247564,1748645440575,-600.0,0.0001874,2]
[363247566,1748645440585,-961.0,0.00018767,2]
[363247569,1748645440597,-2228.0,0.00018767,2]
[363247571,1748645440607,-708.0,0.00018767,2]
[363247572,1748645440617,-250.0,0.00018767,2]
[363247574,1748645440627,-235.232,0.00018767,2]
[363247575,1748645440636,-151.658,0.00018767,2]
[363247577,1748645440649,-2000.0,0.00018784,2]
[363247578,1748645440658,-154.92057638,0.00018795,2]
[363247580,1748645440667,-5000.0,0.000188,2]
[363247582,1748645440677,-140759.61905166,0.000188,2]
[363247583,1748645440687,-273.0,0.000188,2]
[363247585,1748645440697,-151.0,0.000188,2]
[363247587,1748645440707,-151.0,0.000188,2]
[363247588,1748645440717,-151.0,0.000188,2]
[363247590,1748645440727,-1030.7012,0.000188,2]
[363247591,1748645440737,-500.0,0.000188,2]
[363247593,1748645440746,-500.0,0.000188,2]
[363247594,1748645440755,-53998.87128855,0.0001881,2]
[363247596,1748645440766,-346.032464,0.0001881,2]
[363247598,1748645440775,-346.032464,0.0001881,2]
[363247599,1748645440785,-151.0,0.0001881,2]
[363247600,1748645440795,-151.0,0.0001881,2]
[363247601,1748645440803,-151.0,0.0001881,2]
[363247602,1748645440813,-151.0,0.0001881,2]
[363247603,1748645440823,-151.0,0.0001881,2]
[363247604,1748645440832,-164.695509,0.0001881,2]
[363247605,1748645440842,-151.0,0.0001881,2]
[363247606,1748645440850,-151.0,0.0001881,2]
[363247607,1748645440860,-151.0,0.0001881,2]
[363247608,1748645440870,-151.0,0.0001881,2]
[363247609,1748645440879,-151.0,0.0001881,2]
[363247610,1748645440891,-151.0,0.0001881,2]
[363247611,1748645440901,-151.0,0.0001881,2]
[363247612,1748645440910,-24229.85893433,0.0001881,2]
[363247613,1748645440919,-939.921018,0.0001881,2]
[363247614,1748645440928,-939.921018,0.0001881,2]
[363247615,1748645440938,-4868.57041218,0.0001881,2]
[363247616,1748645440947,-2924.97103164,0.00018873,2]
[363247617,1748645440956,-206.0,0.0001888,2]
[363247618,1748645440966,-150.329,0.00018894,2]
[363247619,1748645440975,-250.0,0.00018894,2]
[363247620,1748645440985,-238.354,0.00018894,2]
[363247621,1748645440994,-162.871,0.00018894,2]
[363247622,1748645441004,-257.76,0.00018894,2]
[363247623,1748645441013,-242.0,0.00018894,2]
[363247624,1748645441023,-215.195,0.00018894,2]
[363247625,1748645441032,-300.0,0.000189,2]
[363247626,1748645441043,-503.107899,0.000189,2]
[363247627,1748645441054,-503.107899,0.000189,2]
[363247628,1748645441064,-353.870505,0.000189,2]
[363247629,1748645441073,-353.870505,0.000189,2]
[363247630,1748645441082,-151.0,0.000189,2]
[363247631,1748645441094,-165.87319625,0.000189,2]
[363247632,1748645441104,-4296.01325027,0.000189,2]
[363247633,1748645441114,-662.7,0.00018903,2]
[363247634,1748645441126,-836.16,0.00018903,2]
[363247635,1748645441135,-2315.4,0.00018903,2]
[363247636,1748645441146,-476.78,0.00018903,2]
[363247637,1748645441155,-1208.81,0.00018903,2]
[363247638,1748645441165,-346.032464,0.00018904,2]
[363247639,1748645441174,-346.032464,0.00018904,2]
[363247640,1748645441183,-151.0,0.00018904,2]
[363247641,1748645441192,-151.0,0.00018904,2]
[363247642,1748645441202,-209.619604,0.00018904,2]
[363247643,1748645441211,-209.619604,0.00018904,2]
[363247644,1748645441221,-151.0,0.00018904,2]
[363247645,1748645441230,-151.0,0.00018904,2]
[363247646,1748645441240,-151.0,0.00018904,2]
[363247647,1748645441249,-430.0,0.00018904,2]
[363247648,1748645441259,-151.0,0.00018904,2]
[363247649,1748645441268,-151.0,0.00018904,2]
[363247650,1748645441277,-151.0,0.00018904,2]
[363247651,1748645441286,-1089.93,0.00018904,2]
[363247652,1748645441296,-430.0,0.00018904,2]
[363247653,1748645441305,-151.0,0.00018904,2]
[363247654,1748645441316,-639.511507,0.00018904,2]
[363247655,1748645441326,-639.511507,0.00018904,2]
[363247656,1748645441335,-1534.53,0.00018904,2]
[363247657,1748645441345,-1156.02,0.00018904,2]
[363247658,1748645441354,-361.610647,0.00018904,2]
[363247659,1748645441363,-361.610647,0.00018904,2]
[363247660,1748645441373,-1490.34,0.00018904,2]
[363247661,1748645441383,-164.494903,0.00018904,2]
[363247662,1748645441394,-2678.415307,0.00018904,2]
[363247663,1748645441403,-451.89,0.00018904,2]
[363247664,1748645441413,-2678.415307,0.00018904,2]
[363247665,1748645441422,-2135.86,0.00018904,2]
[363247666,1748645441432,-430.0,0.00018904,2]
[363247667,1748645441442,-430.0,0.00018904,2]
[363247668,1748645441452,-430.0,0.00018904,2]
[363247669,1748645441462,-354.39776051,0.00018904,2]
[363247670,1748645441471,-613.05,0.00018904,2]
[363247671,1748645441481,-430.0,0.00018904,2]
[363247672,1748645441490,-2185.34,0.00018904,2]
[363247673,1748645441499,-622.43,0.00018904,2]
[363247674,1748645441509,-151.0,0.00018904,2]
[363247675,1748645441518,-430.0,0.00018904,2]
[363247676,1748645441528,-457.0,0.00018904,2]
[363247677,1748645441538,-151.0,0.00018904,2]
[363247678,1748645441547,-2162.26,0.00018904,2]
[363247679,1748645441556,-510.64,0.00018904,2]
[363247680,1748645441566,-1735.21,0.00018904,2]
[363247681,1748645441575,-436.04,0.00018904,2]
[363247682,1748645441584,-567.44,0.00018904,2]
[363247683,1748645441593,-897.66,0.00018904,2]
[363247684,1748645441603,-637.91,0.00018904,2]
[363247685,1748645441612,-430.0,0.00018904,2]
[363247686,1748645441622,-153.084,0.00018904,2]
[363247687,1748645441631,-153.084,0.00018904,2]
[363247688,1748645441641,-630.27,0.00018904,2]
[363247689,1748645441650,-430.0,0.00018904,2]
[363247690,1748645441660,-962.3,0.00018904,2]
[363247691,1748645441670,-1198.76,0.00018904,2]
[363247692,1748645441679,-1303.21,0.00018904,2]
[363247693,1748645441689,-1709.17,0.00018904,2]
[363247694,1748645441699,-430.0,0.00018904,2]
[363247695,1748645441708,-154.92057638,0.00018904,2]
[363247696,1748645441718,-364.2452897,0.00018932,2]
[363247697,1748645441728,-600.0,0.00018935,2]
[363247698,1748645441737,-500.0,0.00018973,2]
[363247699,1748645441747,-500.0,0.00018973,2]
[363247700,1748645441757,-500.0,0.00018973,2]
[363247701,1748645441766,-500.0,0.00018973,2]
[363247702,1748645441776,-500.0,0.00018973,2]
[363247703,1748645441786,-500.0,0.00018973,2]
[363247704,1748645441795,-500.0,0.00018973,2]
[363247705,1748645441804,-500.0,0.00018973,2]
[363247706,1748645441813,-500.0,0.00018973,2]
[363247707,1748645441822,-500.0,0.00018973,2]
[363247708,1748645441832,-400.31683951,0.00018973,2]
[363247709,1748645441841,-500.0,0.00018973,2]
[363247710,1748645441850,-500.0,0.00018973,2]
[363247711,1748645441859,-434.96903888,0.00018973,2]
[363247712,1748645441868,-160.15343853,0.00018973,2]
[363247714,1748645441879,-500.0,0.00018973,2]
[363247716,1748645441892,-500.0,0.00018973,2]
[363247718,1748645441901,-561.80109613,0.00018973,2]
[363247720,1748645441911,-296.4592151,0.00018973,2]
[363247722,1748645441922,-160.16834258,0.00018973,2]
[363247724,1748645441932,-158.66588921,0.00018973,2]
[363247726,1748645441942,-160.16771717,0.00018973,2]
[363247728,1748645441952,-575.15556339,0.00018973,2]
[363247730,1748645441962,-341.46195536,0.00018973,2]
[363247732,1748645441972,-500.0,0.00018973,2]
[363247735,1748645441982,-450.27326075,0.00018973,2]
[363247737,1748645441992,-271.63902336,0.00018973,2]
[363247738,1748645442001,-500.0,0.00018973,2]
[363247740,1748645442011,-500.0,0.00018973,2]
[363247742,1748645442020,-500.0,0.00018973,2]
[363247745,1748645442030,-501.82857782,0.00018973,2]
[363247747,1748645442040,-500.0,0.00018973,2]
[363247749,1748645442051,-500.0,0.00018973,2]
[363247750,1748645442061,-500.0,0.00018973,2]
[363247752,1748645442070,-500.0,0.00018973,2]
[363247754,1748645442080,-500.0,0.00018973,2]
[363247757,1748645442091,-500.0,0.00018973,2]
[363247758,1748645442100,-500.8356264,0.00018973,2]
[363247760,1748645442109,-500.0,0.00018973,2]
[363247762,1748645442119,-500.0,0.00018973,2]
[363247765,1748645442132,-600.0,0.00018973,2]
[363247766,1748645442144,-160.16383769,0.00018973,2]
[363247769,1748645442154,-500.0,0.00018973,2]
[363247770,1748645442163,-500.0,0.00018973,2]
[363247773,1748645442174,-500.0,0.00018973,2]
[363247775,1748645442184,-272.15343245,0.00018973,2]
[363247777,1748645442193,-500.0,0.00018973,2]
[363247778,1748645442202,-239.8002961,0.00018973,2]
[363247781,1748645442212,-500.0,0.00018973,2]
[363247783,1748645442221,-500.0,0.00018973,2]
[363247785,1748645442231,-500.0,0.00018973,2]
[363247786,1748645442240,-501.91113092,0.00018973,2]
[363247788,1748645442249,-500.0,0.00018973,2]
[363247791,1748645442259,-500.0,0.00018973,2]
[363247793,1748645442268,-578.41688806,0.00018973,2]
[363247795,1748645442278,-500.0,0.00018973,2]
[363247797,1748645442288,-500.0,0.00018973,2]
[363247799,1748645442297,-500.0,0.00018973,2]
[363247800,1748645442307,-500.0,0.00018973,2]
[363247801,1748645442318,-151.0,0.00018973,2]
[363247802,1748645442328,-151.0,0.00018973,2]
[363247803,1748645442337,-151.0,0.00018973,2]
[363247804,1748645442347,-151.0,0.00018973,2]
[363247805,1748645442357,-480.197686,0.00018973,2]
[363247806,1748645442367,-480.197686,0.00018973,2]
[363247807,1748645442377,-151.0,0.00018973,2]
[363247808,1748645442392,-151.0,0.00018973,2]
[363247809,1748645442402,-184.557744,0.00018973,2]
[363247811,1748645442412,-151.0,0.00018973,2]
[363247812,1748645442421,-1059.168025,0.00018973,2]
[363247813,1748645442431,-1059.168025,0.00018973,2]
[363247814,1748645442440,-939.921018,0.00018989,2]
[363247815,1748645442450,-939.921018,0.00018989,2]
[363247816,1748645442459,-346.032464,0.0001899,2]
[363247817,1748645442469,-346.032464,0.0001899,2]
[363247818,1748645442478,-151.0,0.0001899,2]
[363247819,1748645442488,-3100.9498252,0.0001899,2]
[363247820,1748645442497,-151.0,0.0001899,2]
[363247821,1748645442507,-151.0,0.0001899,2]
[363247822,1748645442516,-151.0,0.0001899,2]
[363247823,1748645442526,-151.0,0.0001899,2]
[363247824,1748645442536,-151.0,0.0001899,2]
[363247825,1748645442546,-151.0,0.0001899,2]
[363247826,1748645442556,-151.0,0.0001899,2]
[363247827,1748645442566,-151.0,0.0001899,2]
[363247828,1748645442576,-151.0,0.0001899,2]
[363247829,1748645442586,-151.0,0.0001899,2]
[363247830,1748645442596,-480.197686,0.0001899,2]
[363247831,1748645442606,-480.197686,0.0001899,2]
[363247832,1748645442616,-151.0,0.0001899,2]
[363247833,1748645442625,-151.0,0.0001899,2]
[363247834,1748645442635,-209.619604,0.0001899,2]
[363247835,1748645442649,-209.619604,0.0001899,2]
[363247836,1748645442659,-151.0,0.0001899,2]
[363247837,1748645442669,-151.0,0.0001899,2]
[363247838,1748645442679,-151.0,0.0001899,2]
[363247839,1748645442689,-151.0,0.0001899,2]
[363247840,1748645442699,-151.0,0.0001899,2]
[363247841,1748645442708,-503.107899,0.0001899,2]
[363247842,1748645442717,-503.107899,0.0001899,2]
[363247843,1748645442727,-939.921018,0.0001899,2]
[363247844,1748645442736,-939.921018,0.0001899,2]
[363247845,1748645442746,-353.870505,0.0001899,2]
[363247846,1748645442755,-353.870505,0.0001899,2]
[363247847,1748645442765,-151.0,0.0001899,2]
[363247848,1748645442775,-12663.11115519,0.0001899,3]
[363247849,1748645442784,-842.5625,0.0001899,3]
[363247850,1748645442795,-314.81381568,0.0001899,3]
[363247851,1748645442804,-212.7380601,0.0001899,3]
[363247852,1748645442814,-160.0,0.00018999,2]
[363247853,1748645442824,-34448.08696,0.00018999,2]
[363247854,1748645442834,-151.0,0.00018999,2]
[363247855,1748645442843,-220.7309126,0.00018999,2]
[363247856,1748645442853,-240.0,0.00018999,2]
[363247857,1748645442863,-160.0,0.00018999,2]
[363247858,1748645442872,-160.0,0.00018999,2]
[363247859,1748645442881,-9772.9355464,0.00019,3]
[363247860,1748645443134,-2635.26073941,0.00019,3]
[363247861,1748645443146,-2399.9584856,0.00019,3]
[363247863,1748645443505,-0.00286954,0.00016435,2]
[363247864,1748645443778,-499.99713046,0.00016435,2]
[363247865,1748645443788,-430.0,0.00016438,2]
[363247866,1748645443798,-430.0,0.00016438,2]
[363247868,1748645443807,-430.0,0.00016712,2]
[363247869,1748645443817,-430.0,0.00016986,2]
[363247870,1748645443827,-359.67,0.0001726,2]
[363247871,1748645443837,-268.57835123,0.00018973,2]
[363247872,1748645443846,-2188.46614389,0.00019,3]
[363247925,1748645465807,330.161177,0.00013699,2]
[363247930,1748646364521,-223.13683407,0.00014409,2]
[363247931,1748646372840,-258.82654172,0.00014409,2]
[363247932,1748646376066,-183.89531806,0.00014265,2]
[363247933,1748646378889,-373.06269534,0.00014265,2]
[363247934,1748646381179,-156.7796826,0.00014265,2]
[363247936,1748646511210,-217.99242621,0.000142,2]
[363247937,1748646562506,5000.0,0.000141,2]
[363247940,1748646572105,313.653118,0.00013699,2]